bitfinex-derivatives/quotes_ETHF0:USTF0_20250817
["timestamp","ask_amount","ask_price","bid_price","bid_amount"]
[1755444813705,3.2078,4563.1,4562.8,1.4486]
[1755444813905,0.1726,4563.0,4562.9,1.278]
[1755444814213,0.1726,4563.1,4563.0,0.8632]
[1755444814407,1.4309,4562.6,4562.5,3.3754]
[1755444814812,1.4309,4562.6,4562.5,3.7932]
[1755444815013,1.4309,4562.6,4562.5,4.0453]
[1755444815428,1.4309,4562.6,4562.5,4.6564]
[1755444815917,1.4309,4562.6,4562.5,3.2078]
[1755444816121,0.5797,4562.2,4562.1,0.2521]
[1755444816419,1.4309,4562.1,4562.0,3.2078]
[1755444816714,1.4309,4562.1,4562.0,4.0453]
[1755444816916,0.4213,4562.1,4562.0,1.4486]
[1755444817220,3.6193,4562.7,4562.6,1.4486]
[1755444817520,4.6387,4562.7,4562.6,3.20182211]
[1755444818019,0.5797,4562.3,4562.2,2.33862211]
[1755444818219,1.4309,4562.3,4562.2,3.20182211]
[1755444819713,0.4213,4562.3,4562.2,0.5854]
[1755444820017,1.4309,4562.3,4562.2,3.20182211]
[1755444820421,0.4115,4562.6,4562.5,1.4486]
[1755444820609,0.1726,4562.6,4562.5,1.4486]
[1755444820812,0.5797,4562.6,4562.5,1.4486]
[1755444821115,1.1748,4562.6,4562.5,1.4486]
[1755444821316,1.4309,4562.6,4562.5,1.4486]
[1755444822016,1.4309,4562.6,4562.5,1.213]
[1755444822217,0.5797,4562.6,4562.5,0.5854]
[1755444822517,0.5797,4562.6,4562.1,21.0222]
[1755444822923,0.2389,4562.4,4562.2,0.4877]
[1755444823119,1.1748,4562.4,4562.3,1.4486]
[1755444823419,0.6676,4562.3,4562.2,0.5854]
[1755444823719,0.6602,4562.4,4562.3,1.278]
[1755444823920,1.1748,4562.4,4562.3,1.4486]
[1755444824114,0.2389,4563.1,4562.3,1.4486]
[1755444824313,0.5871,4563.0,4562.9,0.3382]
[1755444824517,1.4309,4563.0,4562.9,1.213]
[1755444825617,0.8512,4562.9,4562.6,0.2521]
[1755444825816,1.4309,4562.7,4562.6,1.4486]
[1755444826817,0.4213,4562.7,4562.6,1.4486]
[1755444827017,0.6602,4562.7,4562.6,1.4486]
[1755444827212,1.4309,4562.7,4562.6,1.4486]
[1755444827524,0.8186,4562.7,4562.6,1.4486]
[1755444827725,0.6618,4562.7,4562.6,1.4486]
[1755444827926,1.4508,4562.7,4562.6,1.4486]
[1755444828422,1.4508,4562.7,4562.6,1.213]
[1755444828627,1.4508,4562.7,4562.6,1.4492]
[1755444829322,1.4436,4562.4,4562.3,1.4513]
[1755444830326,0.1591,4562.4,4562.3,1.4513]
[1755444831126,0.2405,4562.8,4562.3,1.88946]
[1755444831320,0.8611,4563.1,4562.4,0.8549]
[1755444831519,1.4436,4562.5,4562.4,1.2151]
[1755444831720,1.4436,4562.5,4562.4,0.8439]
[1755444831920,1.4436,4562.5,4562.4,0.5964]
[1755444832119,1.4436,4562.5,4562.4,0.8439]
[1755444832525,1.4436,4562.5,4562.4,1.4513]
[1755444833125,1.2046,4562.5,4562.4,1.4513]
[1755444833325,1.0362,4562.8,4562.7,0.5964]
[1755444833521,1.22346663,4562.8,4562.7,1.4513]
[1755444834127,1.60506663,4562.8,4562.7,1.4513]
[1755444834325,0.98296663,4562.8,4562.7,1.4513]
[1755444835127,2.01246663,4562.8,4562.7,1.4513]
[1755444835516,0.56886663,4562.8,4562.7,1.4513]
[1755444835722,0.6221,4563.7,4562.6,0.43813]
[1755444835723,0.4141,4563.5,4563.4,1.0801]
[1755444835921,0.56893089,4563.5,4563.4,1.4513]
[1755444836726,0.72803089,4563.5,4563.4,1.4513]
[1755444836928,2.01253089,4563.5,4563.4,1.4513]
[1755444837124,1.39193089,4563.5,4563.4,1.4513]
[1755444837320,1.15143089,4563.5,4563.4,1.4513]
[1755444837528,0.98303089,4563.5,4563.4,1.4513]
[1755444839224,0.56893089,4563.5,4563.4,6.5440414]
[1755444839424,1.062,4564.4,4564.3,1.2151]
[1755444839626,0.56848951,4564.4,4564.3,1.4513]
[1755444840424,0.56848951,4564.4,4564.3,3.19572637]
[1755444840820,1.0496,4565.2,4565.1,0.3428]
[1755444841025,2.11199555,4565.2,4565.1,0.8439]
[1755444841730,2.11199555,4565.2,4565.1,1.4513]
[1755444842436,0.66839555,4565.2,4565.1,1.4513]
[1755444842632,0.66839555,4565.2,4565.1,3.19572637]
[1755444842930,1.49139555,4565.2,4565.1,23.38172637]
[1755444843121,2.11199555,4565.2,4565.1,3.19572637]
[1755444843323,2.11199555,4565.2,4565.1,23.39372637]
[1755444843524,1.48989555,4565.2,4564.8,3.2078]
[1755444843720,1.4436,4564.9,4564.8,5.91982637]
[1755444843927,1.4436,4564.9,4564.8,23.4048]
[1755444844125,0.1,4565.2,4565.1,0.5964]
[1755444844328,0.1,4565.2,4565.1,3.19572637]
[1755444844823,1.1362,4565.2,4565.1,3.19572637]
[1755444845032,1.5436,4565.2,4565.1,0.8439]
[1755444845223,1.5436,4565.2,4565.1,21.0529]
[1755444845421,1.5436,4565.2,4565.1,21.6603]
[1755444845626,0.5141,4565.2,4565.1,21.6603]
[1755444846130,1.5436,4565.2,4565.1,21.6603]
[1755444846330,0.923,4565.2,4564.8,3.579]
[1755444846531,0.5825,4565.0,4564.9,22.56082637]
[1755444846732,1.4436,4565.0,4564.9,23.41572637]
[1755444846926,0.8215,4564.9,4564.8,3.4553]
[1755444847132,1.4436,4564.9,4564.8,4.4229]
[1755444847333,1.4436,4564.9,4564.8,0.8439]
[1755444848132,0.4816,4565.2,4564.9,0.8549]
[1755444848338,0.1,4565.2,4565.1,3.19572637]
[1755444848629,1.5436,4565.2,4565.1,0.5964]
[1755444848836,1.5436,4565.2,4565.1,3.19572637]
[1755444849028,0.5141,4565.2,4565.1,3.19572637]
[1755444849228,0.1,4565.2,4565.1,1.4513]
[1755444849434,1.5436,4565.2,4565.1,23.18152637]
[1755444849829,1.5436,4565.2,4565.1,23.41772637]
[1755444850425,1.5436,4565.2,4565.1,22.56282637]
[1755444850625,1.5436,4565.2,4565.1,23.18152637]
[1755444850834,1.5436,4565.2,4565.1,23.41772637]
[1755444851135,0.4141,4564.4,4564.3,0.7898]
[1755444851329,1.4436,4564.4,4564.3,0.8439]
[1755444851532,1.4436,4564.4,4564.3,2.65282637]
[1755444851734,1.4436,4564.4,4564.3,3.19572637]
[1755444852036,1.2046,4564.4,4564.3,0.8439]
[1755444852233,1.4436,4564.4,4564.3,2.95952637]
[1755444852439,0.6221,4565.1,4564.4,1.29286]
[1755444852639,1.4436,4564.8,4564.7,3.19572637]
[1755444852832,0.1591,4564.8,4564.7,23.41372637]
[1755444853635,0.1,4565.2,4565.1,1.8892]
[1755444853835,0.1,4565.2,4565.1,1.4513]
[1755444854037,1.5436,4565.2,4565.1,1.4513]
[1755444854438,1.4436,4565.1,4565.0,20.4955]
[1755444854636,1.4436,4565.1,4565.0,20.248]
[1755444854934,1.4436,4564.8,4564.7,3.2078]
[1755444855334,0.1591,4564.8,4564.7,4.6591]
[1755444855530,0.823,4564.8,4564.7,3.2078]
[1755444855738,1.4436,4564.8,4564.7,23.4648]
[1755444856142,1.4436,4564.8,4564.7,3.2078]
[1755444856535,1.4436,4564.8,4564.2,0.2475]
[1755444856536,1.4436,4564.4,4564.2,3.2078]
[1755444856735,1.4436,4563.8,4563.7,6.16732637]
[1755444857037,1.4436,4563.8,4563.7,3.2078]
[1755444857544,1.4436,4563.8,4563.7,5.54862637]
[1755444857742,1.4436,4563.8,4563.7,3.2078]
[1755444858143,1.4436,4563.8,4563.7,3.5383]
[1755444858341,1.4436,4563.8,4563.7,3.2078]
[1755444859539,1.4648,4563.6,4563.5,20.5945]
[1755444859735,1.4648,4563.6,4563.5,20.8487]
[1755444859943,1.4648,4563.6,4563.5,21.4568]
[1755444860340,0.2566,4563.5,4563.2,3.2078]
[1755444860654,1.4648,4563.3,4563.2,4.6364]
[1755444860951,1.4648,4563.3,4563.2,6.38082637]
[1755444861143,1.4648,4563.3,4563.2,3.3664]
[1755444861340,1.4648,4563.3,4563.2,4.6364]
[1755444862543,1.4648,4563.3,4563.2,3.2078]
[1755444863048,1.4648,4563.3,4563.2,4.0394]
[1755444863247,1.4648,4563.3,4563.2,3.2078]
[1755444864943,0.5681,4563.3,4562.9,20.247]
[1755444865144,0.5681,4563.0,4562.9,20.247]
[1755444865345,1.4648,4563.0,4562.9,20.247]
[1755444865552,1.4648,4563.0,4562.7,5.20642637]
[1755444865553,0.5681,4562.8,4562.7,5.78382637]
[1755444865855,1.4648,4562.8,4562.7,26.39802637]
[1755444866053,1.4648,4562.8,4562.7,3.3797]
[1755444866355,0.3221,4562.5,4562.4,20.25]
[1755444866556,0.5681,4562.5,4562.3,20.25]
[1755444866753,0.5681,4562.5,4561.7,3.2078]
[1755444866754,0.3867,4562.2,4561.7,3.2078]
[1755444867058,0.2566,4562.5,4561.8,0.3612]
[1755444867248,0.1615,4562.0,4561.9,1.0674]
[1755444867448,0.8247,4562.0,4561.9,1.4286]
[1755444867656,1.2114,4562.0,4561.9,1.4286]
[1755444868060,1.4648,4562.7,4562.6,0.8316]
[1755444868263,1.4648,4562.7,4562.6,1.4286]
[1755444868456,0.3867,4563.1,4562.6,0.8132]
[1755444868658,0.6433,4563.1,4562.7,3.17302637]
[1755444868963,0.4075,4562.8,4562.7,2.32182637]
[1755444869164,0.6641,4562.8,4562.7,2.32182637]
[1755444869461,0.4075,4562.8,4562.7,6.38082637]
[1755444869654,0.1615,4562.8,4562.7,6.38082637]
[1755444869957,0.6641,4562.9,4562.8,1.2567]
[1755444870161,1.4648,4562.9,4562.8,1.4286]
[1755444871362,1.2114,4562.9,4562.8,1.4286]
[1755444871661,1.4648,4562.9,4562.8,1.4286]
[1755444872063,0.1615,4562.9,4562.8,1.4286]
[1755444872259,0.4075,4562.9,4562.8,0.5774]
[1755444872459,0.8247,4562.9,4562.8,0.5774]
[1755444872659,1.2114,4562.9,4562.8,0.5774]
[1755444872860,1.4648,4562.9,4562.8,1.4286]
[1755444873765,1.4648,4562.9,4562.8,0.8316]
[1755444874266,1.4648,4562.9,4562.8,1.4286]
[1755444874465,0.4075,4562.9,4562.8,1.4286]
[1755444874661,0.1615,4562.9,4562.8,1.4286]
[1755444874866,0.1615,4562.9,4562.6,3.2078]
[1755444874867,1.2114,4563.2,4563.1,0.5774]
[1755444875063,1.2114,4563.2,4563.1,1.4286]
[1755444875264,1.4648,4563.2,4563.1,1.4286]
[1755444876861,0.3867,4563.7,4563.1,0.5774]
[1755444877067,1.4648,4563.7,4563.6,1.4286]
[1755444877268,1.2114,4564.1,4564.0,0.4055]
[1755444877471,1.4648,4564.1,4564.0,1.1928]
[1755444878468,1.4648,4564.1,4564.0,0.8316]
[1755444879565,0.2566,4564.0,4563.7,0.6154]
[1755444879770,0.51,4563.7,4563.2,1.7]
[1755444880069,0.1615,4563.3,4563.2,3.1286]
[1755444880263,0.1615,4563.3,4563.2,1.4286]
[1755444880775,0.4075,4563.4,4563.3,0.5774]
[1755444880961,0.8247,4563.4,4563.3,1.4286]
[1755444881274,0.6401,4564.1,4563.4,0.6154]
[1755444881469,0.1615,4563.5,4563.4,0.8132]
[1755444881771,0.6433,4563.8,4563.4,0.8132]
[1755444881959,0.8048,4563.8,4563.7,0.5774]
[1755444882159,0.8048,4563.8,4563.7,1.4286]
[1755444882368,0.8967,4563.7,4563.2,0.8512]
[1755444882572,1.4648,4563.7,4563.6,1.1928]
[1755444882873,1.4648,4563.7,4563.6,1.4286]
[1755444883072,1.2114,4563.7,4563.6,1.4286]
[1755444883673,0.1615,4563.7,4563.6,1.4286]
[1755444884168,0.2534,4564.0,4563.6,0.4261]
[1755444884370,3.6153,4564.2,4564.1,1.4286]
[1755444884562,4.0325,4564.2,4564.1,1.4286]
[1755444884765,4.6726,4564.2,4564.1,1.4286]
[1755444884965,1.4648,4564.2,4564.1,1.4286]
[1755444887466,3.2078,4564.7,4564.1,1.4286]
[1755444887665,3.2078,4564.7,4564.2,1.2094]
[1755444887666,0.1651,4564.3,4564.2,1.2094]
[1755444887868,0.1651,4564.3,4564.2,1.4474]
[1755444888071,0.8,4564.3,4564.2,1.4474]
[1755444888271,1.1605,4564.3,4564.2,1.4474]
[1755444888467,3.2078,4564.7,4564.3,0.2348]
[1755444888768,0.8,4564.6,4564.5,0.5879]
[1755444888973,1.4106,4564.6,4564.5,1.4474]
[1755444889774,1.4106,4564.6,4564.5,0.8227]
[1755444890074,0.5639,4564.3,4564.2,0.2348]
[1755444890370,1.4106,4564.3,4564.2,1.2094]
[1755444890667,0.4079,4564.3,4564.2,1.4474]
[1755444890869,3.2078,4564.7,4563.9,2.18243637]
[1755444891075,4.6184,4564.7,4564.6,1.4474]
[1755444891566,4.3683,4564.7,4564.6,1.4474]
[1755444891774,4.6184,4564.7,4564.6,0.8227]
[1755444892369,4.6184,4564.7,4564.6,1.4474]
[1755444892569,0.1651,4564.1,4564.0,1.4474]
[1755444892774,1.1605,4564.1,4564.0,1.4474]
[1755444892975,1.4106,4564.1,4564.0,1.4474]
[1755444893971,0.4079,4564.1,4564.0,1.4474]
[1755444894672,0.8,4564.1,4564.0,1.4474]
[1755444894875,1.1605,4564.1,4564.0,1.4474]
[1755444896178,1.4106,4564.1,4564.0,1.4474]
[1755444897269,0.6106,4564.0,4563.8,1.74442637]
[1755444897474,0.5639,4563.9,4563.8,1.97922637]
[1755444897775,1.4106,4563.9,4563.8,2.56712637]
[1755444898080,1.4106,4563.9,4563.8,3.19182637]
[1755444898372,0.5639,4563.5,4563.4,2.95382637]
[1755444898583,1.4106,4563.5,4563.4,3.19182637]
[1755444899065,1.4106,4563.5,4563.4,1.4474]
[1755444899263,0.1651,4563.5,4563.4,3.19182637]
[1755444899466,0.8,4563.8,4563.7,1.4474]
[1755444899670,0.1651,4563.8,4563.7,1.88543]
[1755444899874,0.1651,4563.8,4563.7,3.19182637]
[1755444900063,1.1605,4563.8,4563.7,3.19182637]
[1755444900271,1.4106,4563.8,4563.7,3.19182637]
[1755444900472,0.8,4563.8,4563.7,3.19182637]
[1755444900666,1.1605,4563.8,4563.7,3.19182637]
[1755444900874,1.4106,4563.8,4563.7,2.95382637]
[1755444901872,1.4106,4563.8,4563.7,3.19182637]
[1755444902080,1.4106,4563.8,4563.7,2.95382637]
[1755444902377,1.4106,4563.8,4563.7,0.3974]
[1755444902576,1.4106,4563.8,4563.7,0.1626]
[1755444902774,1.4106,4563.8,4563.7,1.2094]
[1755444902978,1.4106,4563.8,4563.7,1.4474]
[1755444907280,1.4106,4563.8,4563.7,1.2094]
[1755444907677,1.4106,4563.8,4563.7,1.4474]
[1755444907981,1.4106,4563.8,4563.7,4.6552]
[1755444910083,0.1651,4563.8,4563.7,4.0337]
[1755444910383,1.0045,4564.1,4564.0,0.5879]
[1755444910578,1.0045,4564.1,4564.0,2.57032637]
[1755444910778,1.4106,4564.1,4564.0,3.19182637]
[1755444912688,0.1651,4564.1,4564.0,3.19182637]
[1755444912888,0.00534091,4564.3,4564.0,2.33232637]
[1755444913186,1.41594091,4564.3,4564.2,1.4474]
[1755444913382,1.16584091,4564.3,4564.2,1.4474]
[1755444913591,0.80534091,4564.3,4564.2,1.4474]
[1755444913784,1.16584091,4564.3,4564.2,1.4474]
[1755444914184,1.41594091,4564.3,4564.2,1.4474]
[1755444914791,1.41594091,4564.3,4564.2,3.19182637]
[1755444914984,0.56924091,4564.3,4564.2,3.19182637]
[1755444915186,0.00534091,4564.3,4564.2,6.39962637]
[1755444916585,0.00534091,4564.3,4564.2,8.09962637]
[1755444917697,0.00534091,4564.3,4564.2,8.12152637]
[1755444917891,0.00534091,4564.3,4564.2,8.09962637]
[1755444921398,0.00534091,4564.3,4564.2,6.3552]
[1755444922499,0.521,4565.2,4565.1,1.4597]
[1755444922697,1.528,4565.2,4565.1,6.41192637]
[1755444923099,0.7551,4565.2,4565.1,6.41192637]
[1755444923500,1.2782,4565.2,4565.1,6.41192637]
[1755444923700,1.528,4565.2,4565.1,6.41192637]
[1755444925300,0.7551,4565.2,4565.1,6.41192637]
[1755444925910,1.528,4565.2,4565.1,6.41192637]
[1755444926307,1.528,4565.2,4565.1,3.2078]
[1755444926505,1.428,4565.0,4564.9,20.164]
[1755444926707,1.428,4564.7,4564.6,3.2078]
[1755444927011,0.4058,4564.7,4564.6,4.6675]
[1755444927214,1.428,4564.7,4564.6,6.41192637]
[1755444927906,1.428,4564.7,4564.6,6.16172637]
[1755444928108,1.428,4564.7,4564.6,6.41192637]
[1755444928606,1.428,4564.7,4564.6,4.6675]
[1755444928809,1.428,4564.7,4564.6,6.41192637]
[1755444929308,1.428,4564.7,4564.6,4.4173]
[1755444929507,1.428,4564.7,4564.6,6.16172637]
[1755444929707,1.428,4564.7,4564.6,6.41192637]
[1755444929908,1.428,4564.7,4564.6,4.6675]
[1755444930102,1.428,4564.7,4564.6,6.41192637]
[1755444930606,0.1,4565.2,4565.1,1.4597]
[1755444930805,0.1,4565.2,4565.1,26.57392637]
[1755444931201,0.1,4565.2,4565.1,3.6362]
[1755444931405,1.528,4565.2,4565.1,26.57692637]
[1755444931601,0.7551,4565.2,4565.1,26.57692637]
[1755444932005,0.9257,4565.2,4565.1,26.57692637]
[1755444932206,0.2717,4565.2,4565.1,26.57692637]
[1755444932711,0.8735,4565.2,4565.1,26.57692637]
[1755444932911,1.528,4565.2,4565.1,4.95222637]
[1755444933111,0.1,4565.2,4565.1,26.21222637]
[1755444933311,0.1,4565.2,4565.1,26.57592637]
[1755444934812,0.9257,4565.2,4565.1,26.57592637]
[1755444935114,1.528,4565.2,4565.1,26.57592637]
[1755444935315,1.528,4565.2,4565.1,24.8315]
[1755444935514,1.528,4565.2,4565.1,26.57592637]
[1755444936912,1.2782,4565.2,4565.1,26.57592637]
[1755444937616,0.9257,4565.2,4565.1,26.57592637]
[1755444937809,0.9257,4565.2,4565.1,6.41192637]
[1755444938005,1.528,4565.2,4565.1,26.57792637]
[1755444938205,0.1,4565.2,4565.1,26.57792637]
[1755444939218,0.421,4566.1,4566.0,1.0394]
[1755444939412,1.428,4566.1,4566.0,23.36412637]
[1755444940110,3.2078,4566.9,4566.0,22.15172637]
[1755444940416,1.428,4566.3,4566.2,1.89748]
[1755444940818,1.428,4566.3,4566.2,1.4597]
[1755444941119,0.5764,4566.1,4566.0,1.02731]
[1755444941418,0.5764,4566.2,4566.1,0.5985]
[1755444941716,0.5764,4566.2,4566.1,20.164]
[1755444941916,0.5764,4566.2,4565.9,3.2078]
[1755444942108,0.5764,4566.2,4565.4,2.13786]
[1755444942109,0.5983,4566.0,4565.4,1.7]
[1755444942419,1.428,4565.3,4565.2,21.94242637]
[1755444942616,1.428,4565.3,4565.1,3.2078]
[1755444942815,1.428,4565.2,4565.1,23.4068]
[1755444944915,1.0755,4565.0,4564.9,20.197]
[1755444945119,1.428,4565.0,4564.9,20.197]
[1755444947022,0.5764,4565.0,4564.8,20.199]
[1755444947319,1.428,4564.7,4564.6,2.33392637]
[1755444947521,1.428,4564.7,4564.6,22.52492637]
[1755444947719,1.428,4564.7,4564.6,22.53392637]
[1755444948417,0.8127,4565.4,4564.7,0.842]
[1755444948619,0.3685,4565.5,4564.7,0.842]
[1755444948620,1.44,4565.3,4565.2,2.31112637]
[1755444949122,0.5739,4565.3,4565.2,20.195]
[1755444949318,0.5739,4565.3,4565.1,20.194]
[1755444949519,0.5739,4565.3,4564.9,20.194]
[1755444949719,1.0715,4565.0,4564.7,1.74442637]
[1755444949911,0.8661,4564.9,4564.8,20.198]
[1755444950112,1.44,4564.9,4564.8,20.198]
[1755444950318,1.44,4564.9,4564.8,20.4314]
[1755444950614,0.1712,4564.9,4564.8,21.6067]
[1755444950817,1.44,4565.4,4565.3,1.4087]
[1755444951024,1.44,4565.4,4565.3,3.15312637]
[1755444951318,1.44,4565.4,4565.3,2.91022637]
[1755444951518,0.1686,4565.4,4565.3,3.15312637]
[1755444951723,0.5739,4565.8,4565.7,1.4087]
[1755444951919,0.4027,4565.8,4565.7,23.35312637]
[1755444952315,3.2078,4566.1,4565.7,23.31466637]
[1755444952618,4.6478,4566.1,4566.0,1.4087]
[1755444952824,1.44,4566.1,4566.0,23.35212637]
[1755444953819,0.2588,4566.7,4566.0,23.35212637]
[1755444954019,0.74905574,4566.6,4566.5,1.4087]
[1755444954331,1.44,4566.6,4566.5,1.4087]
[1755444954722,0.6415,4566.6,4566.5,1.4087]
[1755444955026,0.1686,4566.7,4566.6,1.4087]
[1755444956126,1.44,4566.7,4566.6,1.4087]
[1755444957126,1.44,4566.7,4566.6,1.1658]
[1755444957329,1.1812,4566.7,4566.6,1.4087]
[1755444958227,0.1686,4566.7,4566.6,1.4087]
[1755444958530,1.44,4566.7,4566.6,1.4087]
[1755444959325,1.44,4566.7,4566.6,0.5667]
[1755444959520,1.44,4566.7,4566.6,1.1658]
[1755444959725,1.44,4566.7,4566.6,1.4087]
[1755444959928,0.8127,4566.7,4566.6,1.4087]
[1755444960121,0.6615,4567.3,4567.2,0.163]
[1755444960327,0.6615,4567.3,4566.9,21.1084]
[1755444960328,0.5739,4567.0,4566.9,21.1084]
[1755444960528,1.44,4567.0,4566.9,21.3513]
[1755444960725,0.2388,4566.9,4566.5,3.2078]
[1755444960923,1.44,4566.1,4566.0,3.2078]
[1755444961131,1.4619,4566.1,4565.5,3.2078]
[1755444961333,1.44,4565.6,4565.5,3.2078]
[1755444961834,1.44,4565.6,4565.2,0.2334]
[1755444961835,1.44,4565.5,4565.4,0.8001]
[1755444962029,1.44,4565.5,4565.4,23.33112637]
[1755444962030,1.1812,4565.5,4565.4,23.33112637]
[1755444962221,1.44,4565.5,4565.4,22.48912637]
[1755444962426,1.44,4565.5,4565.4,23.08822637]
[1755444962626,0.1712,4565.3,4565.2,0.392]
[1755444962934,1.44,4565.0,4564.9,3.7628]
[1755444963135,1.44,4565.0,4564.9,24.62282]
[1755444963425,3.2078,4566.3,4564.9,24.7935]
[1755444963632,0.5739,4565.7,4565.6,3.15312637]
[1755444964431,0.2341,4565.8,4565.7,0.3657]
[1755444964624,0.2341,4565.8,4565.7,0.9324]
[1755444964625,0.5739,4565.8,4565.7,0.9324]
[1755444964821,0.2388,4565.7,4565.4,3.2078]
[1755444965025,1.74442637,4566.5,4565.1,20.4164]
[1755444965026,0.5739,4565.3,4565.1,20.4164]
[1755444965225,1.2012,4565.2,4565.1,20.183]
[1755444965426,0.8327,4565.0,4564.9,23.3918]
[1755444965726,1.44,4565.0,4564.9,23.3918]
[1755444966132,1.44,4565.0,4564.9,23.7134]
[1755444966329,1.44,4565.0,4564.9,24.1919]
[1755444967128,0.8661,4565.7,4565.0,0.842]
[1755444967327,0.5739,4565.4,4565.3,2.31112637]
[1755444967528,1.44,4565.4,4565.3,0.5667]
[1755444968326,0.4027,4565.1,4564.9,3.2078]
[1755444968533,1.44,4565.0,4564.9,23.5674]
[1755444968734,1.44,4565.0,4564.9,24.5746]
[1755444968931,1.44,4565.0,4564.9,3.2078]
[1755444969336,1.44,4565.0,4564.9,3.5294]
[1755444969531,1.44,4565.0,4564.9,4.0079]
[1755444969731,0.8127,4565.0,4564.9,5.05442]
[1755444969931,0.4027,4565.0,4564.9,5.05442]
[1755444970330,0.6415,4565.0,4564.9,5.05442]
[1755444970738,0.8127,4565.0,4564.9,5.05442]
[1755444970938,1.1812,4565.0,4564.9,5.05442]
[1755444971740,1.44,4565.0,4564.9,5.05442]
[1755444972545,1.44,4565.0,4564.9,3.2078]
[1755444972839,0.5739,4565.3,4565.2,0.59648]
[1755444973036,3.2078,4566.5,4565.3,0.2334]
[1755444973336,0.5739,4565.4,4565.2,21.94042637]
[1755444973543,1.44,4565.3,4565.2,22.50712637]
[1755444973747,1.44,4565.3,4565.2,22.74052637]
[1755444974944,1.44,4565.3,4565.2,22.50712637]
[1755444975443,1.44,4565.3,4565.2,22.74052637]
[1755444975843,1.44,4565.3,4565.2,22.34412637]
[1755444977039,1.44,4565.3,4565.2,22.09902637]
[1755444977443,1.44,4565.0,4564.9,3.2078]
[1755444980046,1.44,4565.0,4564.9,3.3664]
[1755444980245,1.44,4565.0,4564.9,3.5356]
[1755444980450,1.44,4565.0,4564.9,4.6483]
[1755444980946,0.5007,4565.5,4564.9,4.6483]
[1755444981142,1.0863,4565.5,4565.4,0.5778]
[1755444981342,1.4528,4565.5,4565.4,1.4419]
[1755444982146,0.8281,4565.5,4565.4,1.4419]
[1755444982346,1.4528,4565.5,4565.4,1.4419]
[1755444982945,0.5856,4565.5,4565.2,1.74442637]
[1755444983145,0.7869,4565.3,4565.2,0.5695]
[1755444983350,1.4528,4565.3,4565.2,1.4419]
[1755444983653,0.0219,4566.1,4565.0,21.3934]
[1755444983654,1.4528,4565.1,4565.0,21.3934]
[1755444983846,1.4528,4565.1,4565.0,21.6299]
[1755444985152,0.4204,4565.1,4565.0,21.6299]
[1755444986255,0.169,4565.1,4565.0,21.6299]
[1755444986554,0.2425,4565.4,4565.0,23.81222637]
[1755444986750,0.2425,4565.7,4565.2,0.5778]
[1755444987052,3.4503,4566.4,4566.0,1.87971]
[1755444987250,0.58023455,4566.3,4566.2,2.15302637]
[1755444987552,3.5743,4566.9,4566.2,22.54122637]
[1755444987754,0.169,4566.7,4566.6,2.32222637]
[1755444987954,0.169,4566.7,4566.6,22.54022637]
[1755444988257,3.8325,4566.9,4566.6,22.54022637]
[1755444988258,3.5743,4566.9,4566.6,22.54022637]
[1755444988452,3.7433,4566.9,4566.8,0.8143]
[1755444988654,4.2372,4566.9,4566.8,1.4419]
[1755444989354,4.4024,4566.9,4566.8,1.4419]
[1755444989957,1.1946,4566.9,4566.8,1.4419]
[1755444990257,0.169,4566.9,4566.8,1.4419]
[1755444990454,0.609,4567.2,4566.9,0.8641]
[1755444990654,0.4115,4567.2,4567.1,1.4419]
[1755444990858,1.4528,4567.2,4567.1,1.4419]
[1755444993160,1.4528,4567.0,4566.9,0.8641]
[1755444993360,0.778,4567.0,4566.9,1.4419]
[1755444993559,0.4115,4567.0,4566.9,1.4419]
[1755444993754,0.4166,4567.1,4567.0,1.0324]
[1755444993961,1.4528,4567.1,4567.0,1.4419]
[1755444995259,0.5856,4566.7,4566.6,0.2403]
[1755444995468,0.5007,4566.6,4566.5,3.2078]
[1755444995660,0.5007,4566.6,4565.8,1.74442637]
[1755444995661,0.8672,4566.5,4565.9,0.2403]
[1755444995860,3.2078,4566.6,4565.9,0.8181]
[1755444995861,1.4528,4566.0,4565.9,0.8181]
[1755444996254,1.4528,4566.0,4565.9,0.5778]
[1755444996459,0.5856,4565.7,4565.4,20.223]
[1755444996666,1.4528,4565.5,4565.4,21.0411]
[1755444997067,1.4528,4565.5,4565.4,21.4284]
[1755444997467,1.4528,4565.5,4565.4,21.6649]
[1755444997964,0.9521,4565.1,4565.0,23.4268]
[1755444998164,1.4528,4565.1,4564.7,0.2403]
[1755444998467,1.4528,4564.8,4564.7,23.41032637]
[1755444998969,0.4204,4564.8,4564.7,23.41032637]
[1755444999467,1.4528,4564.8,4564.7,21.6659]
[1755445000962,1.1946,4564.8,4564.7,21.6579]
[1755445001169,0.6629,4564.8,4564.7,21.6579]
[1755445001356,0.5007,4565.1,4564.8,0.2365]
[1755445001557,0.5007,4565.1,4565.0,3.18632637]
[1755445001558,1.4528,4565.1,4565.0,3.18632637]
[1755445001763,0.3665,4565.6,4565.0,2.94602637]
[1755445001959,0.6629,4565.2,4565.1,1.4419]
[1755445002164,0.3665,4565.4,4565.1,21.6539]
[1755445002366,0.169,4565.4,4565.3,3.18632637]
[1755445002562,0.5317,4565.8,4565.7,0.16]
[1755445002766,1.1946,4565.8,4565.7,1.4419]
[1755445003163,0.8281,4565.8,4565.7,3.18632637]
[1755445003462,0.169,4565.8,4565.7,3.18632637]
[1755445003659,0.3665,4566.1,4565.7,3.18632637]
[1755445003875,1.0294,4566.1,4566.0,0.5778]